bitfinex/quotes_BTCUSD_20250316
["timestamp","ask_amount","ask_price","bid_price","bid_amount"]
[1742131151027,0.012034,83093.0,83091.0,0.0041692]
[1742131151028,0.252729,83093.0,83091.0,0.0041692]
[1742131151263,0.252731,83092.0,83091.0,0.0041692]
[1742131151877,0.252731,83092.0,83091.0,0.0021692]
[1742131152280,0.252731,83092.0,83091.0,0.0041692]
[1742131152501,0.629231,83092.0,83091.0,0.0001692]
[1742131152792,0.629231,83092.0,83091.0,0.0011692]
[1742131153212,0.629231,83092.0,83091.0,0.0001692]
[1742131153588,0.629231,83092.0,83091.0,0.0021692]
[1742131154010,0.629231,83092.0,83091.0,0.0041692]
[1742131155379,0.674531,83092.0,83091.0,0.0041692]
[1742131155584,0.69339907,83092.0,83091.0,0.0041692]
[1742131156210,0.69339907,83092.0,83091.0,0.0021692]
[1742131157068,0.69439907,83092.0,83091.0,0.0001692]
[1742131158748,0.675531,83092.0,83091.0,0.0001692]
[1742131159105,0.599031,83092.0,83091.0,0.0001692]
[1742131159305,0.553731,83092.0,83091.0,0.0001692]
[1742131160046,0.252731,83092.0,83091.0,0.0001692]
[1742131162201,0.27159875,83092.0,83091.0,0.0001692]
[1742131163704,0.27159875,83092.0,83091.0,0.0021692]
[1742131163944,0.27159875,83092.0,83091.0,0.0011692]
[1742131164143,0.27159875,83092.0,83091.0,0.0021692]
[1742131167877,0.57159875,83092.0,83091.0,0.0021692]
[1742131168101,0.552731,83092.0,83091.0,0.0021692]
[1742131170623,0.552731,83092.0,83091.0,0.0011692]
[1742131171099,0.5530694,83092.0,83091.0,0.0001692]
[1742131176574,0.84539806,83092.0,83091.0,0.0001692]
[1742131176779,0.97389806,83092.0,83091.0,0.0001692]
[1742131178009,0.97489806,83092.0,83091.0,0.0001692]
[1742131179558,0.97689806,83092.0,83091.0,0.0001692]
[1742131180261,0.97689806,83092.0,83091.0,2e-07]
[1742131183500,0.84839806,83092.0,83091.0,2e-07]
[1742131185700,0.54839806,83092.0,83091.0,2e-07]
[1742131186895,0.54539806,83092.0,83091.0,2e-07]
[1742131187503,0.2530694,83092.0,83091.0,2e-07]
[1742131187707,0.2530694,83092.0,83091.0,0.0010002]
[1742131188077,0.2530694,83092.0,83091.0,2e-07]
[1742131188904,0.2530694,83092.0,83091.0,0.0010002]
[1742131189508,0.2530694,83092.0,83091.0,0.0020002]
[1742131189857,0.0003384,83092.0,83091.0,0.0020002]
[1742131190102,0.0003384,83092.0,83091.0,0.3843332]
[1742131190818,0.0003384,83092.0,83091.0,0.3833332]
[1742131191233,0.0003384,83092.0,83091.0,0.3853332]
[1742131191435,0.0003384,83092.0,83091.0,0.1326002]
[1742131191654,0.0003384,83092.0,83091.0,0.1446342]
[1742131191846,0.0003384,83092.0,83091.0,0.1436342]
[1742131192507,0.0003384,83092.0,83091.0,0.1336002]
[1742131192709,0.0003384,83092.0,83091.0,0.1316002]
[1742131192959,0.0003384,83092.0,83091.0,0.1326002]
[1742131193430,0.0003384,83092.0,83091.0,0.1356002]
[1742131193634,0.0003384,83092.0,83091.0,0.1476342]
[1742131196131,0.0003384,83092.0,83091.0,0.1356002]
[1742131196857,0.0123724,83092.0,83091.0,0.1356002]
[1742131197019,0.0003384,83092.0,83091.0,0.1356002]
[1742131197691,0.01400179,83092.0,83091.0,0.1356002]
[1742131197887,0.0003384,83092.0,83091.0,0.1356002]
[1742131198085,0.0003384,83092.0,83091.0,0.1476342]
[1742131200044,0.0003384,83092.0,83091.0,0.14883762]
[1742131201366,0.0003384,83092.0,83091.0,0.1356002]
[1742131201501,0.0003384,83092.0,83091.0,0.1476342]
[1742131202116,0.0003384,83092.0,83091.0,0.1356002]
[1742131202328,0.2530694,83092.0,83091.0,0.1356002]
[1742131202525,0.0003384,83092.0,83091.0,0.1356002]
[1742131203642,0.0123724,83092.0,83091.0,0.0882002]
[1742131204453,0.0003384,83092.0,83091.0,0.0882002]
[1742131204858,0.0123724,83092.0,83091.0,0.0882002]
[1742131205455,0.0123724,83092.0,83091.0,0.0060002]
[1742131206322,0.3123724,83092.0,83091.0,0.0060002]
[1742131206753,0.55274,83089.0,83088.0,4e-07]
[1742131206960,0.552749,83086.0,83085.0,7.8e-07]
[1742131207163,0.552792,83072.0,83053.0,0.10706431]
[1742131207717,0.552792,83072.0,83052.0,0.335352]
[1742131208352,0.552792,83072.0,83054.0,0.240805]
[1742131208724,0.552792,83072.0,83071.0,0.0019693]
[1742131209231,0.3,83073.0,83071.0,0.0019693]
[1742131209611,0.012037,83072.0,83071.0,0.0019693]
[1742131209811,0.012037,83072.0,83071.0,0.0029693]
[1742131210031,0.012037,83072.0,83071.0,0.0019693]
[1742131210800,0.27752664,83072.0,83071.0,0.0009693]
[1742131210969,0.27752664,83072.0,83071.0,0.0019693]
[1742131211387,0.27752664,83072.0,83071.0,0.0009693]
[1742131211815,0.27752664,83072.0,83071.0,0.0019693]
[1742131212353,0.27752664,83072.0,83071.0,0.0029693]
[1742131214127,0.012036,83078.0,83071.0,0.0029693]
[1742131214364,0.240754,83073.0,83071.0,0.0029693]
[1742131214530,0.012037,83072.0,83071.0,0.0029693]
[1742131214943,0.012037,83072.0,83071.0,0.0019693]
[1742131215275,0.012037,83072.0,83071.0,0.0009693]
[1742131216205,0.312037,83072.0,83071.0,0.0019693]
[1742131216469,0.312037,83072.0,83071.0,0.0009693]
[1742131216870,0.312037,83072.0,83071.0,0.0029693]
[1742131217045,0.3,83072.0,83071.0,0.0029693]
[1742131217248,0.012037,83075.0,83071.0,0.0029693]
[1742131217566,0.540745,83076.0,83071.0,0.0029693]
[1742131217711,0.3,83074.0,83071.0,0.0029693]
[1742131217912,0.312037,83074.0,83071.0,0.0039693]
[1742131218244,0.552788,83074.0,83071.0,0.0039693]
[1742131218421,0.552788,83074.0,83073.0,0.012037]
[1742131218422,0.3,83074.0,83073.0,0.012037]
[1742131218678,0.76444134,83086.0,83084.0,0.252753]
[1742131218851,0.76444134,83086.0,83085.0,0.0822]
[1742131219085,0.76444134,83086.0,83085.0,0.334952]
[1742131219286,0.76444134,83086.0,83085.0,0.382352]
[1742131219495,4.134e-05,83086.0,83085.0,0.382352]
[1742131220910,4.134e-05,83086.0,83085.0,0.522832]
[1742131221433,0.00104134,83086.0,83085.0,0.522832]
[1742131221638,4.134e-05,83086.0,83085.0,0.522832]
[1742131222057,0.00104134,83086.0,83085.0,0.524832]
[1742131222393,0.00104134,83086.0,83085.0,0.526832]
[1742131222601,0.00104134,83086.0,83085.0,0.524832]
[1742131223162,0.00204134,83086.0,83085.0,0.529832]
[1742131224018,0.00204134,83086.0,83085.0,0.525112]
[1742131226901,0.00194134,83086.0,83085.0,0.525112]
[1742131229541,0.00227974,83086.0,83085.0,0.525112]
[1742131230187,7.4e-07,83086.0,83085.0,0.54465285]
[1742131230392,7.4e-07,83086.0,83085.0,0.53765285]
[1742131230590,0.00100074,83086.0,83085.0,0.54165285]
[1742131230818,7.4e-07,83086.0,83085.0,0.54365285]
[1742131230960,7.4e-07,83086.0,83085.0,0.55283639]
[1742131233607,7.4e-07,83086.0,83085.0,2.05283639]
[1742131235167,6e-07,83101.0,83096.0,0.005]
[1742131235353,4.197e-05,83101.0,83100.0,0.74994685]
[1742131235553,4.197e-05,83101.0,83100.0,0.89034685]
[1742131235794,4.197e-05,83101.0,83100.0,0.84034685]
[1742131235990,4.197e-05,83101.0,83100.0,0.89034685]
[1742131237261,4.197e-05,83101.0,83100.0,0.89634685]
[1742131237456,4.197e-05,83101.0,83100.0,0.90234685]
[1742131238373,3.7e-07,83112.0,83111.0,0.380374]
[1742131238988,3.7e-07,83112.0,83111.0,1.880374]
[1742131239214,3.7e-07,83112.0,83111.0,1.89418183]
[1742131239593,3.7e-07,83112.0,83111.0,1.90018183]
[1742131240938,3.7e-07,83112.0,83111.0,0.54054183]
[1742131241320,3.7e-07,83112.0,83111.0,0.54654183]
[1742131241523,0.25250637,83134.0,83129.0,0.252616]
[1742131241820,0.00818392,83133.0,83129.0,0.252616]
[1742131242736,0.00793283,83133.0,83129.0,0.252616]
[1742131242944,0.00793283,83133.0,83129.0,0.254616]
[1742131243344,0.00793283,83133.0,83131.0,0.240583]
[1742131243763,0.240572,83135.0,83131.0,0.240583]
[1742131244031,0.2406766,83135.0,83131.0,0.240583]
[1742131244231,0.00815374,83134.0,83130.0,0.012029]
[1742131244861,0.24873174,83134.0,83131.0,0.002]
[1742131245062,0.058329,83132.0,83131.0,0.002]
[1742131245260,0.0463,83132.0,83131.0,0.002]
[1742131245483,0.00813809,83132.0,83131.0,0.004]
[1742131245657,0.00813809,83132.0,83131.0,0.244582]
[1742131245996,0.0001046,83135.0,83131.0,0.244582]
[1742131246200,0.0081381,83132.0,83131.0,0.244582]
[1742131246401,0.0001046,83135.0,83134.0,0.252603]
[1742131246615,0.0001046,83135.0,83131.0,0.254611]
[1742131246815,0.252605,83134.0,83131.0,0.002]
[1742131246946,0.240577,83134.0,83130.0,0.242585]
[1742131247147,0.0001046,83135.0,83130.0,0.254614]
[1742131247346,0.0001046,83135.0,83131.0,0.012029]
[1742131247546,0.0001046,83135.0,83134.0,0.012028]
[1742131248915,0.0001046,83135.0,83134.0,0.013028]
[1742131249121,0.00824632,83135.0,83134.0,0.013028]
[1742131249878,0.00824632,83135.0,83134.0,0.087728]
[1742131250081,0.00824632,83135.0,83134.0,0.088728]
[1742131250306,0.0001046,83135.0,83134.0,0.089728]
[1742131250479,0.0001046,83135.0,83134.0,0.013028]
[1742131250689,0.0001046,83135.0,83134.0,0.015028]
[1742131251194,0.00826512,83135.0,83134.0,0.013028]
[1742131251389,0.0001046,83135.0,83134.0,0.012028]
[1742131251596,0.00826512,83135.0,83134.0,0.014028]
[1742131251771,0.0001046,83135.0,83134.0,0.016028]
[1742131251972,0.00826512,83135.0,83134.0,0.014028]
[1742131252179,0.0001046,83135.0,83134.0,0.014028]
[1742131252375,0.00828499,83135.0,83134.0,0.016028]
[1742131252593,0.0001046,83135.0,83134.0,0.016028]
[1742131252827,0.00828342,83135.0,83134.0,0.016028]
[1742131253033,0.0001046,83135.0,83134.0,0.016028]
[1742131253822,0.00828584,83135.0,83134.0,0.016028]
[1742131254017,0.00862404,83135.0,83134.0,0.016028]
[1742131254219,0.00862404,83135.0,83134.0,0.004]
[1742131256635,0.00852404,83135.0,83134.0,0.004]
[1742131256850,0.00852404,83135.0,83134.0,0.016028]
[1742131257216,0.0003428,83135.0,83134.0,0.016028]
[1742131258462,0.00852665,83135.0,83134.0,0.016028]
[1742131258661,0.0003428,83135.0,83134.0,0.016028]
[1742131258996,0.00852665,83135.0,83134.0,0.016028]
[1742131259199,0.0003428,83135.0,83134.0,0.016028]
[1742131259398,0.00852665,83135.0,83134.0,0.016028]
[1742131259640,0.0003428,83135.0,83134.0,0.016028]
[1742131259841,0.00852665,83135.0,83134.0,0.004]
[1742131259999,0.0003428,83135.0,83134.0,0.004]
[1742131260205,0.00852665,83135.0,83134.0,0.004]
[1742131262831,0.00852665,83135.0,83134.0,0.016028]
[1742131265850,0.00852665,83135.0,83134.0,0.004]
[1742131268029,0.32055465,83135.0,83134.0,0.004]
[1742131269030,0.30852665,83135.0,83134.0,0.004]
[1742131269353,0.30852665,83135.0,83134.0,0.014028]
[1742131269354,0.00852665,83135.0,83134.0,0.014028]
[1742131269520,0.00852665,83135.0,83134.0,0.013028]
[1742131270662,0.00852665,83135.0,83134.0,0.015028]
[1742131270869,0.00852665,83135.0,83134.0,0.014028]
[1742131271247,0.00852665,83135.0,83134.0,0.016028]
[1742131272566,0.00852665,83135.0,83134.0,0.004]
[1742131272775,0.32055465,83135.0,83134.0,0.004]
[1742131274851,0.30852665,83135.0,83134.0,0.004]
[1742131275053,0.00852665,83135.0,83134.0,0.004]
[1742131275453,0.32055465,83135.0,83134.0,0.004]
[1742131277985,0.012029,83132.0,83131.0,0.0001691]
[1742131278329,0.02020683,83132.0,83131.0,0.0001691]
[1742131278526,0.26078783,83132.0,83131.0,0.0001691]
[1742131279947,0.56078783,83132.0,83131.0,0.0001691]
[1742131280156,0.82340371,83132.0,83131.0,0.0001691]
[1742131280357,0.82340371,83132.0,83101.0,0.0805]
[1742131280358,0.3,83108.0,83103.0,0.012033]
[1742131280499,0.3,83108.0,83101.0,0.333201]
[1742131280500,0.3,83106.0,83101.0,0.333201]
[1742131280906,0.00813531,83105.0,83101.0,0.333201]
[1742131281107,0.00813531,83105.0,83104.0,0.012033]
[1742131281842,0.00813531,83105.0,83104.0,0.01213299]
[1742131282005,0.3,83108.0,83107.0,0.252685]
[1742131282839,0.3,83113.0,83107.0,0.252685]
[1742131283049,0.552669,83113.0,83107.0,0.252685]
[1742131283382,0.3,83110.0,83107.0,0.257685]
[1742131283706,0.3,83111.0,83107.0,0.257685]
[1742131284043,0.3,83111.0,83107.0,0.252685]
[1742131284212,0.3,83111.0,83107.0,0.256685]
[1742131284938,0.3,83111.0,83107.0,0.261685]
[1742131285437,0.3,83111.0,83107.0,0.265685]
[1742131285566,0.3,83111.0,83107.0,0.261685]
[1742131285567,0.00814135,83110.0,83107.0,0.261685]
[1742131286144,0.00814135,83110.0,83107.0,0.266685]
[1742131286351,0.0108155,83110.0,83107.0,0.266685]
[1742131286471,0.0108155,83110.0,83107.0,0.252685]
[1742131286690,0.0108155,83110.0,83107.0,0.257685]
[1742131287856,0.0108155,83110.0,83108.0,0.252681]
[1742131288278,0.3,83112.0,83108.0,0.252681]
[1742131288489,0.01079677,83109.0,83108.0,0.012032]
[1742131288642,0.3,83112.0,83108.0,0.252681]
[1742131288846,0.240623,83118.0,83108.0,0.252681]
[1742131288847,0.01313471,83118.0,83117.0,0.333855]
[1742131289068,0.4169,83132.0,83130.0,0.252614]
[1742131289230,0.0003382,83135.0,83133.0,0.252606]
[1742131289851,0.0003382,83135.0,83134.0,0.012028]
[1742131290663,0.0003382,83135.0,83133.0,0.252606]
[1742131290664,0.0003382,83135.0,83133.0,0.254606]
[1742131290864,0.0003382,83135.0,83133.0,0.002]
[1742131291091,0.0003382,83135.0,83134.0,0.252603]
[1742131292242,0.0003382,83135.0,83134.0,0.002]
[1742131292445,0.5529382,83135.0,83134.0,0.002]
[1742131292653,0.66008238,83135.0,83134.0,0.002]
[1742131292858,0.552682,83108.0,83107.0,0.0001691]
[1742131293070,0.552682,83108.0,83107.0,0.00026909]
[1742131293269,0.3,83108.0,83107.0,0.00026909]
[1742131293465,0.29528,83108.0,83107.0,0.00026909]
[1742131293731,0.29528,83108.0,83107.0,0.01230109]
[1742131294408,0.29528,83108.0,83107.0,0.00026909]
[1742131295142,0.29528,83108.0,83107.0,0.01530109]
[1742131295346,0.29528,83108.0,83107.0,0.00026909]
[1742131295534,0.29528,83108.0,83107.0,0.00326909]
[1742131295687,0.29528,83108.0,83107.0,0.00726909]
[1742131296088,0.29528,83108.0,83107.0,0.00426909]
[1742131296408,0.29528,83108.0,83107.0,0.00826909]
[1742131296751,0.29528,83108.0,83107.0,0.00640006]
[1742131297895,0.29528,83108.0,83107.0,0.01843206]
[1742131300180,0.29528,83108.0,83107.0,0.00640006]
[1742131300387,0.30459839,83108.0,83107.0,0.00640006]
[1742131300583,0.30459839,83108.0,83107.0,0.01843206]
[1742131301878,0.00931384,83108.0,83107.0,0.01843206]
[1742131302250,0.252657,83117.0,83107.0,0.01843206]
[1742131302251,0.252654,83118.0,83112.0,0.252668]
[1742131302614,0.00810367,83117.0,83112.0,0.252668]
[1742131302814,0.24872967,83117.0,83112.0,0.252668]
[1742131303391,0.240643,83111.0,83107.0,0.25525116]
[1742131303591,0.240638,83113.0,83108.0,0.240649]
[1742131303784,0.00809241,83110.0,83108.0,0.240649]
[1742131303904,0.252669,83113.0,83108.0,0.240649]
[1742131304109,0.00809563,83112.0,83108.0,0.240649]
[1742131304370,0.240642,83111.0,83107.0,0.2528531]
[1742131304687,0.00809402,83111.0,83107.0,0.2528531]
[1742131305295,0.00809402,83111.0,83108.0,0.003]
[1742131305507,0.24873802,83111.0,83108.0,0.003]
[1742131305739,0.26077002,83111.0,83108.0,0.003]
[1742131305940,0.012032,83109.0,83108.0,0.003]
[1742131306117,0.012032,83109.0,83107.0,0.0031691]
[1742131306498,0.00809238,83108.0,83107.0,0.00148697]
[1742131306846,0.012032,83111.0,83106.0,0.252686]
[1742131307045,0.00810205,83108.0,83106.0,0.252686]
[1742131307249,0.240632,83115.0,83107.0,0.012032]
[1742131307456,0.00810044,83107.0,83102.0,0.012033]
[1742131307574,0.252681,83109.0,83104.0,0.252693]
[1742131307779,0.00809883,83106.0,83104.0,0.252693]
[1742131308001,0.252681,83109.0,83104.0,0.252693]
[1742131308201,0.252681,83109.0,83106.0,0.003]
[1742131308202,0.240652,83108.0,83106.0,0.003]
[1742131308398,0.240652,83108.0,83103.0,0.252696]
[1742131308732,0.252688,83107.0,83102.0,0.01212732]
[1742131308943,0.240658,83106.0,83104.0,0.004]
[1742131309113,0.240658,83106.0,83102.0,0.24076032]
[1742131309390,0.012032,83107.0,83106.0,0.004]
[1742131309766,0.252678,83110.0,83106.0,0.004]
[1742131309963,0.252682,83109.0,83106.0,0.004]
[1742131310590,0.012032,83110.0,83106.0,0.244655]
[1742131310750,0.012032,83110.0,83106.0,0.240655]
[1742131310949,0.252679,83110.0,83106.0,0.003]
[1742131311147,0.00810527,83109.0,83106.0,0.003]
[1742131311518,0.00810527,83109.0,83106.0,0.243655]
[1742131311815,0.00810527,83109.0,83106.0,0.246655]
[1742131312198,0.00810527,83109.0,83106.0,0.006]
[1742131312410,0.00810527,83109.0,83106.0,0.003]
[1742131312758,0.24875327,83109.0,83106.0,0.004]
[1742131312962,0.252685,83107.0,83106.0,0.004]
[1742131313562,0.26072685,83107.0,83106.0,0.004]
[1742131313946,0.252698,83103.0,83102.0,9.432e-05]
[1742131314359,0.012032,83106.0,83102.0,9.432e-05]
[1742131314360,0.25269,83106.0,83102.0,9.432e-05]
[1742131314552,0.0080375,83103.0,83102.0,9.432e-05]
[1742131314989,0.012032,83108.0,83103.0,0.012033]
[1742131315398,0.012032,83108.0,83104.0,0.24066]
[1742131315527,0.240639,83112.0,83104.0,0.252693]
[1742131315742,0.240639,83112.0,83106.0,0.0001691]
[1742131316062,0.240649,83109.0,83106.0,0.0001691]
[1742131316273,0.0003382,83111.0,83106.0,0.0001691]
[1742131316723,0.0003382,83111.0,83110.0,0.012032]
[1742131317932,0.0003382,83111.0,83110.0,0.013032]
[1742131318134,0.0003382,83111.0,83110.0,0.016032]
[1742131318332,0.0003382,83111.0,83110.0,0.097632]
[1742131318532,0.00838644,83111.0,83110.0,0.097632]
[1742131319219,0.00838644,83111.0,83110.0,0.096632]
[1742131319453,0.0003382,83111.0,83110.0,0.096632]
[1742131319669,0.0003382,83111.0,83110.0,0.099632]
[1742131319837,0.00838966,83111.0,83110.0,0.099632]
[1742131320000,0.0003382,83111.0,83110.0,0.099632]
[1742131320202,0.00839127,83111.0,83110.0,0.099632]
[1742131321041,0.0003382,83111.0,83110.0,0.099632]
[1742131321967,0.0123702,83111.0,83110.0,0.006]
[1742131322290,0.00838966,83111.0,83110.0,0.006]
[1742131323080,0.00828966,83111.0,83110.0,0.006]
[1742131323419,0.02032166,83111.0,83110.0,0.006]
[1742131324075,0.00828966,83111.0,83110.0,0.006]
[1742131324586,0.26096466,83111.0,83106.0,0.012032]
[1742131324835,0.26096466,83111.0,83106.0,0.252687]
[1742131325008,0.00828966,83111.0,83109.0,0.240645]
[1742131325148,0.00828966,83111.0,83109.0,0.252677]
[1742131325842,0.00828966,83111.0,83110.0,0.012032]
[1742131326199,0.0002382,83111.0,83110.0,0.012032]
[1742131326404,0.0002382,83111.0,83110.0,0.08933516]
[1742131326785,0.0002382,83111.0,83110.0,1.63643516]
[1742131326967,0.0002382,83111.0,83110.0,1.635232]
[1742131327167,0.02371346,83155.0,83134.0,0.252603]
[1742131327374,0.33166903,83148.0,83134.0,0.328703]
[1742131327571,0.0123662,83135.0,83134.0,0.0761]
[1742131327771,0.0003382,83135.0,83134.0,0.012028]
[1742131328088,0.0003382,83135.0,83133.0,0.240576]
[1742131328089,0.0003382,83135.0,83133.0,0.012028]
[1742131328318,0.0013382,83135.0,83133.0,0.011028]
[1742131328530,0.00811548,83134.0,83133.0,0.011028]
[1742131328903,0.02014348,83134.0,83132.0,0.1402]
[1742131329110,0.00811548,83134.0,83131.0,0.240582]
[1742131329311,0.00811548,83134.0,83130.0,0.252614]
[1742131329511,0.00811548,83134.0,83131.0,0.240582]
[1742131329712,0.00811548,83134.0,83128.0,0.252619]
[1742131329991,0.24058,83133.0,83128.0,0.24059]
[1742131330267,0.240585,83131.0,83125.0,0.2406]
[1742131330467,0.240584,83131.0,83125.0,0.2406]
[1742131330679,0.240584,83131.0,83126.0,0.252625]
[1742131330680,0.00812188,83130.0,83126.0,0.252625]
[1742131330867,0.00812188,83130.0,83127.0,0.252621]
[1742131331165,0.012029,83132.0,83127.0,0.252621]
[1742131331401,0.00812027,83129.0,83127.0,0.252621]
[1742131331602,0.012029,83132.0,83127.0,0.252621]
[1742131331809,0.252627,83127.0,83120.0,0.252643]
[1742131332014,0.240578,83133.0,83126.0,0.012029]
[1742131332237,0.240478,83134.0,83129.0,0.240589]
[1742131332360,0.252608,83133.0,83127.0,0.240593]
[1742131332915,0.012029,83128.0,83127.0,0.002]
[1742131333674,0.32656985,83128.0,83127.0,0.002]
[1742131334033,0.40276985,83128.0,83127.0,0.003]
[1742131334342,0.41088233,83128.0,83127.0,0.001]
[1742131334620,0.312032,83108.0,83096.0,0.380843]
[1742131334855,0.32657285,83108.0,83092.0,0.10706431]
[1742131335026,0.33464509,83108.0,83092.0,0.10706431]
[1742131335373,0.34737038,83108.0,83092.0,0.10706431]
[1742131335572,0.34737038,83108.0,83087.0,0.240711]
[1742131335769,0.34737038,83108.0,83087.0,0.252746]
[1742131336044,0.34737038,83108.0,83088.0,0.240705]
[1742131336278,0.34737038,83108.0,83085.0,0.0814692]
[1742131336479,0.34737038,83108.0,83085.0,0.0001692]
[1742131336840,0.34737038,83108.0,83085.0,0.2529192]
[1742131337042,0.34737038,83108.0,83086.0,0.252747]
[1742131337466,0.34737038,83108.0,83086.0,0.012035]
[1742131337627,0.34737038,83108.0,83092.0,0.012034]
[1742131337829,0.02079753,83108.0,83107.0,0.0041691]
[1742131338038,0.33282953,83108.0,83107.0,0.0041691]
[1742131338489,0.30807224,83108.0,83107.0,0.0142011]
[1742131338655,0.30807224,83108.0,83107.0,0.0122011]
[1742131339064,0.00807224,83108.0,83107.0,0.0132011]
[1742131339260,0.012031,83113.0,83107.0,0.0011691]
[1742131339482,0.240644,83110.0,83107.0,0.0011691]
[1742131339735,0.54065,83108.0,83107.0,0.0011691]
[1742131339895,0.552682,83108.0,83107.0,0.0011691]
[1742131340100,0.560673,83108.0,83107.0,0.0011691]
[1742131340545,0.560673,83108.0,83107.0,0.0001691]
[1742131340739,0.560673,83108.0,83107.0,0.0011691]
[1742131341473,0.560673,83108.0,83107.0,0.0001691]
[1742131341650,0.560673,83108.0,83107.0,0.0021691]
[1742131342054,0.307991,83108.0,83107.0,0.0021691]
[1742131342272,0.307991,83108.0,83107.0,0.0041691]
[1742131342466,0.307991,83108.0,83107.0,0.2568541]
[1742131342866,0.307991,83108.0,83107.0,0.0162011]
[1742131343067,0.307991,83108.0,83107.0,0.0041691]
[1742131343419,0.32004381,83108.0,83107.0,0.0041691]
[1742131345853,0.33458466,83108.0,83107.0,0.0021691]
[1742131346094,0.33458466,83108.0,83107.0,0.0001691]
[1742131346300,0.33458466,83108.0,83107.0,0.0011691]
[1742131346499,0.33458466,83108.0,83107.0,0.0021691]
[1742131348056,0.33458466,83108.0,83107.0,0.0011691]
[1742131349529,0.45715969,83108.0,83107.0,0.0011691]
[1742131349739,0.45715969,83108.0,83107.0,0.0001691]
[1742131350243,0.87605969,83108.0,83107.0,0.0001691]
[1742131351004,0.87105969,83108.0,83107.0,0.0001691]
[1742131351291,0.87605969,83108.0,83107.0,0.0001691]
[1742131352414,0.75648466,83108.0,83107.0,0.0001691]
[1742131352771,0.74194381,83108.0,83107.0,0.0001691]
[1742131353171,0.75648466,83108.0,83107.0,0.0001691]
[1742131353393,0.74194381,83108.0,83107.0,0.0001691]
[1742131353774,0.75348466,83108.0,83107.0,0.0001691]
[1742131354425,0.75548466,83108.0,83107.0,0.0001691]
[1742131354977,0.42891181,83108.0,83107.0,0.0001691]
[1742131355099,0.72891181,83108.0,83107.0,0.0001691]
[1742131355297,0.72691181,83108.0,83107.0,0.0001691]
[1742131355942,0.72691181,83108.0,83107.0,0.0122011]
[1742131355943,0.00801181,83108.0,83107.0,0.0122011]
[1742131356314,0.003,83108.0,83107.0,0.0001691]
[1742131356716,0.02059325,83108.0,83107.0,0.0001691]
[1742131357024,0.01859325,83108.0,83107.0,0.0001691]
[1742131360985,0.0331341,83108.0,83107.0,0.0001691]
[1742131361186,0.15270913,83108.0,83107.0,0.0001691]
[1742131361387,0.0331341,83108.0,83107.0,0.0001691]
[1742131362337,0.252681,83109.0,83107.0,0.0001691]
[1742131362490,0.00948829,83108.0,83107.0,0.0001691]
[1742131362832,0.02152029,83108.0,83107.0,0.0001691]
[1742131362989,0.01752029,83108.0,83107.0,0.0001691]
[1742131363189,0.01952029,83108.0,83107.0,0.0001691]
[1742131364141,0.02252029,83108.0,83107.0,0.0001691]
[1742131364290,0.33706114,83108.0,83107.0,0.0001691]
[1742131364495,0.33406114,83108.0,83107.0,0.0001691]
[1742131364707,0.33606114,83108.0,83107.0,0.0001691]
[1742131364911,0.75296114,83108.0,83107.0,0.0001691]
[1742131366372,0.89312114,83108.0,83107.0,0.0001691]
[1742131366580,0.87858029,83108.0,83107.0,0.0001691]
[1742131367642,0.73842029,83108.0,83107.0,0.0001691]
[1742131369511,0.75296114,83108.0,83107.0,0.0001691]
[1742131374243,0.01454085,83107.0,83085.0,0.0001692]
[1742131374369,0.252749,83086.0,83085.0,0.00026352]
[1742131374781,0.25819824,83086.0,83085.0,0.00026352]
[1742131376046,0.25819824,83086.0,83085.0,0.00226352]
[1742131377505,0.55819824,83086.0,83085.0,0.00226352]
[1742131377723,0.30544924,83086.0,83085.0,0.00226352]
[1742131378229,0.30544924,83086.0,83085.0,0.14259852]
[1742131378230,0.00544924,83086.0,83085.0,0.14259852]
[1742131378536,0.240697,83092.0,83087.0,0.012035]
[1742131378747,0.012033,83101.0,83093.0,0.240692]
[1742131378954,0.012033,83102.0,83095.0,0.012034]
[1742131379225,0.012033,83101.0,83096.0,0.0784]
[1742131379426,0.25197443,83105.0,83098.0,0.012033]
[1742131379628,0.012033,83103.0,83096.0,0.0784]
[1742131379865,0.3,83101.0,83096.0,0.319083]
[1742131380047,0.540672,83101.0,83096.0,0.319083]
[1742131380247,0.240675,83100.0,83096.0,0.0784]
[1742131380960,0.552705,83101.0,83096.0,0.0784]
[1742131381192,0.240679,83098.0,83096.0,0.0784]
[1742131381394,0.012034,83097.0,83096.0,0.0784]
[1742131381576,0.012034,83097.0,83096.0,0.0794]
[1742131381921,0.012034,83097.0,83096.0,0.0804]
[1742131382125,0.01749866,83097.0,83096.0,0.0804]
[1742131382325,0.01749866,83097.0,83096.0,0.001]
[1742131382565,0.012035,83090.0,83089.0,0.0784]
[1742131383096,0.00546213,83090.0,83089.0,0.0784]
[1742131383582,0.240701,83091.0,83089.0,0.0784]
[1742131383780,0.00545531,83090.0,83089.0,0.0784]
[1742131384512,0.00545531,83090.0,83089.0,0.0814]
[1742131384692,0.25819231,83090.0,83089.0,0.0814]
[1742131384979,0.252737,83090.0,83089.0,0.0814]
[1742131385175,0.2581915,83090.0,83089.0,0.0814]
[1742131385376,0.0054545,83090.0,83089.0,0.0854]
[1742131385909,0.252733,83092.0,83089.0,0.0854]
[1742131386130,0.2461565,83090.0,83089.0,0.0854]
[1742131386344,0.252737,83090.0,83089.0,0.0854]
[1742131386536,0.25818874,83090.0,83089.0,0.0854]
[1742131386734,0.25818874,83090.0,83089.0,0.0814]
[1742131387719,0.25818874,83090.0,83089.0,0.0784]
[1742131388102,0.25818874,83090.0,83089.0,0.0814]
[1742131388343,0.00545174,83090.0,83089.0,0.0815692]
[1742131388733,0.25273,83093.0,83089.0,0.0795692]
[1742131389165,0.00545588,83092.0,83091.0,0.012034]
[1742131389503,0.012034,83097.0,83089.0,0.3212712]
[1742131389727,0.00545173,83092.0,83089.0,0.3323062]
[1742131389937,0.012034,83095.0,83089.0,0.3323062]
[1742131390146,0.012034,83095.0,83089.0,0.0795692]
[1742131390147,0.240702,83091.0,83089.0,0.0795692]
[1742131390346,0.012035,83090.0,83089.0,0.0795692]
[1742131390545,0.01748195,83090.0,83089.0,0.0795692]
[1742131390722,0.01748195,83090.0,83089.0,0.0011692]
[1742131390723,0.31748195,83090.0,83089.0,0.0011692]
[1742131392061,0.31748195,83090.0,83089.0,0.0001692]